Workbook

Sheet Sheet1
A1: a1 | B1: 40 | I1: =+PI()/180 -> 0.01745329252
A2: a2 | B2: 20
A3: a3 | B3: 50 | K3: A0 | L3: 0 | M3: 0
A4: a4 | B4: 50 | D4: a3 | E4: =angcos(B3,B5,B6) -> 0.006324629107 | K4: A | L4: =+B2*COS(A10*D_R) -> -15.32088886 | M4: =+B2*SIN(A10*D_R) -> 12.85575219
A5: b3 | B5: 100 | D5: b3 | E5: =angcos(B6,B3,B5) -> 3.128943648 | K5: B | L5: =+B1+B4*COS(C10) -> 21.65472146 | M5: =+B4*SIN(C10) -> 46.51290955
A6: c3 | B6: 50.002 | K6: P | L6: =+L4+B5*COS(B10+E4) -> 58.20311749 | M6: =+M4+B5*SIN(E4+B10) -> 80.63643152
K7: A | L7: =+L4 -> -15.32088886 | M7: =+M4 -> 12.85575219
K8: B | L8: =+L5 -> 21.65472146 | M8: =+M5 -> 46.51290955
A9: q12 | B9: q13 | C9: q14 | K9: B0 | L9: =+B1 -> 40 | M9: 0
A10: 140 | B10: =FourBar2($B$2,$B$3,$B$4,$B$1,1,A10*D_R) -> 0.7384509079 | C10: 1.946476737
K11: A0 | L11: 0 | M11: 0
K12: A1 | L12: =+B5*COS(B10+E4) -> 73.52400635 | M12: =+B5*SIN(B10+E4) -> 67.78067933
K13: P | L13: =+L12+B2*COS(A10*D_R) -> 58.20311749 | M13: =+M12+B2*SIN(A10*D_R) -> 80.63643152
K14: C1 | L14: =+L12+B2*B5/B3*COS(E4+A10*D_R) -> 42.72022683 | M14: =+M12+B2*B5/B3*SIN(A10*D_R+E4) -> 93.29787289
K15: A1 | L15: =+L12 -> 73.52400635 | M15: =+M12 -> 67.78067933
A16: q12 | B16: q13 | C16: q14 | D16: Px | E16: Py | K16: C1 | L16: =+L14 -> 42.72022683 | M16: =+M14 -> 93.29787289
A17: 0 | B17: =FourBar2($B$2,$B$3,$B$4,$B$1,1,A17*D_R) -> 1.369438406 | C17: 1.772154248 | D17: =+$B$2*COS(A17*D_R)+$B$5*COS(B17+$E$4) -> 39.37991956 | E17: =+$B$2*SIN(A17*D_R)+$B$5*SIN(B17+$E$4) -> 98.10412182 | K17: C0 | L17: =+L16+B4*B5/B3*COS(C10-PI()+E4) -> 79.99839997 | M17: =+M16+B4*B5/B3*SIN(C10-PI()+E4) -> 0.5059669553
A18: 5 | B18: =FourBar2($B$2,$B$3,$B$4,$B$1,1,A18*D_R) -> 1.281282374 | C18: 1.687093988 | D18: 47.86582945 | E18: 97.76003129
A19: 10 | B19: =FourBar2($B$2,$B$3,$B$4,$B$1,1,A19*D_R) -> 1.193913759 | C19: 1.608858793 | D19: 55.90971074 | E19: 96.68550769 | K19: B0 | L19: =+L9 -> 40 | M19: =+M9 -> 0
A20: 15 | B20: =FourBar2($B$2,$B$3,$B$4,$B$1,1,A20*D_R) -> 1.110700771 | C20: 1.540387582 | D20: 63.15431186 | E20: 95.05642901 | K20: B1 | L20: =+L19+B6*COS(B10+PI()-E5) -> 76.54839603 | M20: =+B6*SIN(B10+PI()-E5) -> 34.12352197
A21: 20 | B21: =FourBar2($B$2,$B$3,$B$4,$B$1,1,A21*D_R) -> 1.034059359 | C21: 1.483473816 | D21: 69.38275915 | E21: 93.10025747 | K21: C2 | L21: =+L20+B4*B6/B3*COS(C10-E5) -> 95.48129063 | M21: =+M20+B4*B6/B3*SIN(C10-E5) -> -12.15547441
A22: 25 | B22: =FourBar2($B$2,$B$3,$B$4,$B$1,1,A22*D_R) -> 0.965351081 | C22: 1.438761681 | D22: 74.51780262 | E22: 91.03554852 | K22: P | L22: =+L13 -> 58.20311749 | M22: =+M13 -> 80.63643152
A23: 30 | B23: =FourBar2($B$2,$B$3,$B$4,$B$1,1,A23*D_R) -> 0.9050395638 | C23: 1.405986612 | D23: 78.58732241 | E23: 89.03402724 | K23: B1 | L23: =+L20 -> 76.54839603 | M23: =+M20 -> 34.12352197
A24: 35 | B24: =FourBar2($B$2,$B$3,$B$4,$B$1,1,A24*D_R) -> 0.8529573613 | C24: 1.38429781 | D24: 81.6811847 | E24: 87.20891985 | K24: C2 | L24: =+L21 -> 95.48129063 | M24: =+M21 -> -12.15547441
A25: 40 | B25: =FourBar2($B$2,$B$3,$B$4,$B$1,1,A25*D_R) -> 0.8085659475 | C25: 1.372546066 | D25: 83.91569082 | E25: 85.62080661 | K25: C0 | L25: =+L21+B2*B6/B3*COS(A10*D_R+PI()-E5) -> 79.99839997 | M25: =+M21+B2*B6/B3*SIN(A10*D_R+PI()-E5) -> 0.5059669553
A26: 45 | B26: =FourBar2($B$2,$B$3,$B$4,$B$1,1,A26*D_R) -> 0.7711544081 | C26: 1.369490172 | D26: 85.41055746 | E26: 84.2906356
A27: 50 | B27: =FourBar2($B$2,$B$3,$B$4,$B$1,1,A27*D_R) -> 0.7399691107 | C27: 1.373922578 | D27: 86.27676903 | E27: 83.21311439
A28: 55 | B28: =FourBar2($B$2,$B$3,$B$4,$B$1,1,A28*D_R) -> 0.7142878124 | C28: 1.384734084 | D28: 86.61170409 | E28: 82.36753942 | K28: C0 | L28: 0 | M28: 0
A29: 60 | B29: =FourBar2($B$2,$B$3,$B$4,$B$1,1,A29*D_R) -> 0.6934559453 | C29: 1.400939157 | D29: 86.49835267 | E29: 81.72549265 | K29: C2' | L29: =+L21-L25 -> 15.48289066 | M29: =+M21-M25 -> -12.66144137
A30: 65 | B30: =FourBar2($B$2,$B$3,$B$4,$B$1,1,A30*D_R) -> 0.6768998794 | C30: 1.421678691 | D30: 86.00647838 | E30: 81.2558598 | K30: P' | L30: =+L22-L25 -> -21.79528248 | M30: =+M22-M25 -> 80.13046457
A31: 70 | B31: =FourBar2($B$2,$B$3,$B$4,$B$1,1,A31*D_R) -> 0.6641274502 | C31: 1.44621133 | D31: 85.19448795 | E31: 80.92787973 | K31: P | L31: =+L22 -> 58.20311749 | M31: =+M22 -> 80.63643152
A32: 75 | B32: =FourBar2($B$2,$B$3,$B$4,$B$1,1,A32*D_R) -> 0.6547221787 | C32: 1.47390002 | D32: 84.11137923 | E32: 80.71286512
A33: 80 | B33: =FourBar2($B$2,$B$3,$B$4,$B$1,1,A33*D_R) -> 0.648334906 | C33: 1.504197448 | D33: 82.7984915 | E33: 80.58507536
A34: 85 | B34: =FourBar2($B$2,$B$3,$B$4,$B$1,1,A34*D_R) -> 0.6446748546 | C34: 1.536632182 | D34: 81.29096756 | E34: 80.52207157
A35: 90 | B35: =FourBar2($B$2,$B$3,$B$4,$B$1,1,A35*D_R) -> 0.6435011088 | C35: 1.570796327 | D35: 79.61892475 | E35: 80.50476693
A36: 95 | B36: =FourBar2($B$2,$B$3,$B$4,$B$1,1,A36*D_R) -> 0.6446149395 | C36: 1.606334899 | D36: 77.80836846 | E36: 80.51730534
A37: 100 | B37: =FourBar2($B$2,$B$3,$B$4,$B$1,1,A37*D_R) -> 0.6478530937 | C37: 1.642936913 | D37: 75.88189222 | E37: 80.54684828
A38: 105 | B38: =FourBar2($B$2,$B$3,$B$4,$B$1,1,A38*D_R) -> 0.6530820161 | C38: 1.680327999 | D38: 73.85920792 | E38: 80.58331636
A39: 110 | B39: =FourBar2($B$2,$B$3,$B$4,$B$1,1,A39*D_R) -> 0.660192904 | C39: 1.718264353 | D39: 71.7575443 | E39: 80.61911182
A40: 115 | B40: =FourBar2($B$2,$B$3,$B$4,$B$1,1,A40*D_R) -> 0.6690974753 | C40: 1.756527828 | D40: 69.59194573 | E40: 80.64883583
A41: 120 | B41: =FourBar2($B$2,$B$3,$B$4,$B$1,1,A41*D_R) -> 0.6797243278 | C41: 1.794921981 | D41: 67.37549744 | E41: 80.66900763
A42: 125 | B42: =FourBar2($B$2,$B$3,$B$4,$B$1,1,A42*D_R) -> 0.6920157836 | C42: 1.833268914 | D42: 65.11949818 | E42: 80.67778871
A43: 130 | B43: =FourBar2($B$2,$B$3,$B$4,$B$1,1,A43*D_R) -> 0.7059251225 | C43: 1.871406768 | D43: 62.83359721 | E43: 80.67471345
A44: 135 | B44: =FourBar2($B$2,$B$3,$B$4,$B$1,1,A44*D_R) -> 0.7214141315 | C44: 1.909187775 | D44: 60.52590916 | E44: 80.66042701
A45: 140 | B45: =FourBar2($B$2,$B$3,$B$4,$B$1,1,A45*D_R) -> 0.7384509079 | C45: 1.946476737 | D45: 58.20311749 | E45: 80.63643152
A46: 145 | B46: =FourBar2($B$2,$B$3,$B$4,$B$1,1,A46*D_R) -> 0.757007871 | C46: 1.983149878 | D46: 55.87057505 | E46: 80.60484186
A47: 150 | B47: =FourBar2($B$2,$B$3,$B$4,$B$1,1,A47*D_R) -> 0.7770599523 | C47: 2.019093972 | D47: 53.53240834 | E47: 80.56815312
A48: 155 | B48: =FourBar2($B$2,$B$3,$B$4,$B$1,1,A48*D_R) -> 0.79858294 | C48: 2.054205684 | D48: 51.19163017 | E48: 80.52902274
A49: 160 | B49: =FourBar2($B$2,$B$3,$B$4,$B$1,1,A49*D_R) -> 0.8215519676 | C49: 2.088391073 | D49: =+$B$2*COS(A49*D_R)+$B$5*COS(B49+$E$4) -> 48.85026392 | E49: =+$B$2*SIN(A49*D_R)+$B$5*SIN(B49+$E$4) -> 80.49007038
A50: 165 | B50: =FourBar2($B$2,$B$3,$B$4,$B$1,1,A50*D_R) -> 0.8459401414 | C50: 2.121565179 | D50: 46.50948118 | E50: 80.45369965
A51: 170 | B51: =FourBar2($B$2,$B$3,$B$4,$B$1,1,A51*D_R) -> 0.8717173048 | C51: 2.153651673 | D51: 44.16975289 | E51: 80.42194536
A52: 175 | B52: =FourBar2($B$2,$B$3,$B$4,$B$1,1,A52*D_R) -> 0.8988489415 | C52: 2.18458249 | D52: 41.83101308 | E52: 80.39635037
A53: 180 | B53: =FourBar2($B$2,$B$3,$B$4,$B$1,1,A53*D_R) -> 0.927295218 | C53: 2.214297436 | D53: 39.49283302 | E53: 80.37787518
A54: 185 | B54: =FourBar2($B$2,$B$3,$B$4,$B$1,1,A54*D_R) -> 0.9570101636 | C54: 2.242743712 | D54: 37.15460285 | E54: 80.36684314
A55: 190 | B55: =FourBar2($B$2,$B$3,$B$4,$B$1,1,A55*D_R) -> 0.9879409807 | C55: 2.269875349 | D55: 34.81571684 | E55: 80.36292269
A56: 195 | B56: =FourBar2($B$2,$B$3,$B$4,$B$1,1,A56*D_R) -> 1.020027474 | C56: 2.295652512 | D56: 32.47575853 | E56: 80.36514744
A57: 200 | B57: =FourBar2($B$2,$B$3,$B$4,$B$1,1,A57*D_R) -> 1.053201581 | C57: 2.320040686 | D57: 30.1346816 | E57: 80.37197331
A58: 205 | B58: =FourBar2($B$2,$B$3,$B$4,$B$1,1,A58*D_R) -> 1.087386969 | C58: 2.343009714 | D58: 27.79298284 | E58: 80.3813711
A59: 210 | B59: =FourBar2($B$2,$B$3,$B$4,$B$1,1,A59*D_R) -> 1.122498682 | C59: 2.364532701 | D59: 25.45186435 | E59: 80.39095174
A60: 215 | B60: =FourBar2($B$2,$B$3,$B$4,$B$1,1,A60*D_R) -> 1.158442776 | C60: 2.384584783 | D60: 23.11338276 | E60: 80.39812088
A61: 220 | B61: =FourBar2($B$2,$B$3,$B$4,$B$1,1,A61*D_R) -> 1.195115917 | C61: 2.403141746 | D61: 20.78058452 | E61: 80.40025898
A62: 225 | B62: =FourBar2($B$2,$B$3,$B$4,$B$1,1,A62*D_R) -> 1.232404879 | C62: 2.420178522 | D62: 18.45762768 | E62: 80.39492289
A63: 230 | B63: =FourBar2($B$2,$B$3,$B$4,$B$1,1,A63*D_R) -> 1.270185885 | C63: 2.435667531 | D63: 16.14989179 | E63: 80.38006525
A64: 235 | B64: =FourBar2($B$2,$B$3,$B$4,$B$1,1,A64*D_R) -> 1.30832374 | C64: 2.44957687 | D64: 13.86407915 | E64: 80.35426822
A65: 240 | B65: =FourBar2($B$2,$B$3,$B$4,$B$1,1,A65*D_R) -> 1.346670672 | C65: 2.461868326 | D65: 11.60831234 | E65: 80.31698901
A66: 245 | B66: =FourBar2($B$2,$B$3,$B$4,$B$1,1,A66*D_R) -> 1.385064826 | C66: 2.472495178 | D66: 9.39223441 | E66: 80.26881498
A67: 250 | B67: =FourBar2($B$2,$B$3,$B$4,$B$1,1,A67*D_R) -> 1.423328301 | C67: 2.48139975 | D67: 7.227120419 | E67: 80.21172717
A68: 255 | B68: =FourBar2($B$2,$B$3,$B$4,$B$1,1,A68*D_R) -> 1.461264654 | C68: 2.488510638 | D68: 5.126011015 | E68: 80.14937136
A69: 260 | B69: =FourBar2($B$2,$B$3,$B$4,$B$1,1,A69*D_R) -> 1.49865574 | C69: 2.49373956 | D69: 3.103881587 | E69: 80.0873361
A70: 265 | B70: =FourBar2($B$2,$B$3,$B$4,$B$1,1,A70*D_R) -> 1.535257755 | C70: 2.496977714 | D70: 1.177863902 | E70: 80.03343635
A71: 270 | B71: =FourBar2($B$2,$B$3,$B$4,$B$1,1,A71*D_R) -> 1.570796327 | C71: 2.498091545 | D71: -0.6324586942 | E71: 79.99799996
A72: 275 | B72: =FourBar2($B$2,$B$3,$B$4,$B$1,1,A72*D_R) -> 1.604960471 | C72: 2.496917799 | D72: -2.304656328 | E72: 79.9941502
A73: 280 | B73: =FourBar2($B$2,$B$3,$B$4,$B$1,1,A73*D_R) -> 1.637395206 | C73: 2.493257748 | D73: -3.812925733 | E73: 80.03807085
A74: 285 | B74: =FourBar2($B$2,$B$3,$B$4,$B$1,1,A74*D_R) -> 1.667692633 | C74: 2.486870475 | D74: -5.127392874 | E74: 80.14922823
A75: 290 | B75: =FourBar2($B$2,$B$3,$B$4,$B$1,1,A75*D_R) -> 1.695381324 | C75: 2.477465203 | D75: -6.213201077 | E75: 80.35050408
A76: 295 | B76: =FourBar2($B$2,$B$3,$B$4,$B$1,1,A76*D_R) -> 1.719913962 | C76: 2.464692774 | D76: -7.029339446 | E76: 80.66815999
A77: 300 | B77: =FourBar2($B$2,$B$3,$B$4,$B$1,1,A77*D_R) -> 1.740653497 | C77: 2.448136708 | D77: -7.52717644 | E77: 81.13150097
A78: 305 | B78: =FourBar2($B$2,$B$3,$B$4,$B$1,1,A78*D_R) -> 1.75685857 | C78: 2.427304841 | D78: -7.64869861 | E78: 81.77202473
A79: 310 | B79: =FourBar2($B$2,$B$3,$B$4,$B$1,1,A79*D_R) -> 1.767670076 | C79: 2.401623543 | D79: -7.324541056 | E79: 82.62172579
A80: 315 | B80: =FourBar2($B$2,$B$3,$B$4,$B$1,1,A80*D_R) -> 1.772102482 | C80: 2.370438245 | D80: -6.472079422 | E80: 83.71006996
A81: 320 | B81: =FourBar2($B$2,$B$3,$B$4,$B$1,1,A81*D_R) -> 1.769046588 | C81: 2.333026706 | D81: =+$B$2*COS(A81*D_R)+$B$5*COS(B81+$E$4) -> -4.994204424 | E81: =+$B$2*SIN(A81*D_R)+$B$5*SIN(B81+$E$4) -> 85.05899126
A82: 325 | B82: =FourBar2($B$2,$B$3,$B$4,$B$1,1,A82*D_R) -> 1.757294844 | C82: 2.288635292 | D82: -2.780007127 | E82: 86.67518589
A83: 330 | B83: =FourBar2($B$2,$B$3,$B$4,$B$1,1,A83*D_R) -> 1.735606041 | C83: 2.23655309 | D83: 0.2904848883 | E83: 88.53922219
A84: 335 | B84: =FourBar2($B$2,$B$3,$B$4,$B$1,1,A84*D_R) -> 1.702830973 | C84: 2.176241573 | D84: 4.334330195 | E84: 90.59199628
A85: 340 | B85: =FourBar2($B$2,$B$3,$B$4,$B$1,1,A85*D_R) -> 1.658118837 | C85: 2.107533295 | D85: 9.442820222 | E85: 92.72142816
A86: 345 | B86: =FourBar2($B$2,$B$3,$B$4,$B$1,1,A86*D_R) -> 1.601205071 | C86: 2.030891882 | D86: 15.64600521 | E86: 94.75615965
A87: 350 | B87: =FourBar2($B$2,$B$3,$B$4,$B$1,1,A87*D_R) -> 1.53273386 | C87: 1.947678894 | D87: 22.86940599 | E87: 96.47667616
A88: 355 | B88: =FourBar2($B$2,$B$3,$B$4,$B$1,1,A88*D_R) -> 1.454498666 | C88: 1.86031028 | D88: 30.89904353 | E88: 97.65279096
A89: 360 | B89: =FourBar2($B$2,$B$3,$B$4,$B$1,1,A89*D_R) -> 1.369438406 | C89: 1.772154248 | D89: 39.37991956 | E89: 98.10412182

Sheet Sheet2

Sheet Sheet3
